lending/lending_fUSD_20241115
["ID","MTS","AMOUNT","RATE_DAILY","PERIOD"]
[342318869,1731701525891,-620.09,9.787e-05,2]
[342318870,1731701525904,-620.09,9.787e-05,2]
[342318871,1731701525914,-620.09,9.787e-05,2]
[342318872,1731701525923,-620.26383643,9.787e-05,2]
[342318873,1731701525932,-500.0,9.787e-05,2]
[342318874,1731701525942,-500.0,9.787e-05,2]
[342318875,1731701525951,-500.0,9.787e-05,2]
[342318876,1731701525960,-500.0,9.787e-05,2]
[342318877,1731701525970,-209.73109767,9.787e-05,2]
[342318878,1731701525979,-500.0,9.787e-05,2]
[342318879,1731701525988,-547.07879025,9.787e-05,2]
[342318880,1731701525998,-1298.84,9.787e-05,2]
[342318881,1731701526008,-1298.84,9.787e-05,2]
[342318882,1731701526017,-1298.84,9.787e-05,2]
[342318883,1731701526026,-1298.84,9.787e-05,2]
[342318884,1731701526036,-1298.84896775,9.787e-05,2]
[342318885,1731701526047,-1138.34,9.787e-05,2]
[342318886,1731701526058,-1138.34,9.787e-05,2]
[342318887,1731701526070,-1138.34,9.787e-05,2]
[342318888,1731701526079,-1138.34,9.787e-05,2]
[342318889,1731701526088,-500.0,9.787e-05,2]
[342318890,1731701526097,-1138.51665559,9.787e-05,2]
[342318891,1731701526106,-526.04172149,9.787e-05,2]
[342318892,1731701526115,-640.85,9.787e-05,2]
[342318893,1731701526124,-640.85,9.787e-05,2]
[342318894,1731701526134,-640.85,9.787e-05,2]
[342318895,1731701526142,-640.85,9.787e-05,2]
[342318896,1731701526158,-640.93364039,9.787e-05,2]
[342318897,1731701526168,-902.47,9.787e-05,2]
[342318898,1731701526177,-902.47,9.787e-05,2]
[342318899,1731701526186,-902.47,9.787e-05,2]
[342318900,1731701526195,-902.47,9.787e-05,2]
[342318901,1731701526204,-902.67524026,9.787e-05,2]
[342318902,1731701526213,-1028.06,9.787e-05,2]
[342318903,1731701526225,-1028.06,9.787e-05,2]
[342318904,1731701526234,-500.0,9.787e-05,2]
[342318905,1731701526243,-1028.06,9.787e-05,2]
[342318906,1731701526251,-529.20981505,9.787e-05,2]
[342318907,1731701526260,-1028.06,9.787e-05,2]
[342318908,1731701526269,-1028.11499781,9.787e-05,2]
[342318909,1731701526278,-679.79,9.787e-05,2]
[342318910,1731701526287,-679.79,9.787e-05,2]
[342318911,1731701526296,-679.79,9.787e-05,2]
[342318912,1731701526306,-679.79,9.787e-05,2]
[342318913,1731701526315,-679.87344184,9.787e-05,2]
[342318914,1731701526325,-631.17,9.787e-05,2]
[342318915,1731701526334,-631.17,9.787e-05,2]
[342318916,1731701526344,-631.17,9.787e-05,2]
[342318917,1731701526353,-631.17,9.787e-05,2]
[342318918,1731701526362,-631.33379925,9.787e-05,2]
[342318919,1731701526372,-926.14,9.787e-05,2]
[342318920,1731701526381,-926.14,9.787e-05,2]
[342318921,1731701526390,-926.14,9.787e-05,2]
[342318922,1731701526403,-926.14,9.787e-05,2]
[342318923,1731701526412,-926.14206127,9.787e-05,2]
[342318924,1731701526422,-665.05,9.787e-05,2]
[342318925,1731701526432,-665.05,9.787e-05,2]
[342318926,1731701526441,-665.05,9.787e-05,2]
[342318927,1731701526451,-665.05,9.787e-05,2]
[342318928,1731701526461,-665.09279474,9.787e-05,2]
[342318929,1731701526471,-500.0,9.787e-05,2]
[342318930,1731701526480,-500.0,9.787e-05,2]
[342318931,1731701526490,-500.0,9.787e-05,2]
[342318932,1731701526500,-500.0,9.787e-05,2]
[342318933,1731701526509,-500.0,9.787e-05,2]
[342318934,1731701526518,-418.3308783,9.787e-05,2]
[342318935,1731701526528,-500.0,9.787e-05,2]
[342318936,1731701526537,-232.33300419,9.787e-05,2]
[342318937,1731701526547,-579.09,9.787e-05,2]
[342318938,1731701526557,-579.09,9.787e-05,2]
[342318939,1731701526567,-579.09,9.787e-05,2]
[342318940,1731701526577,-579.09,9.787e-05,2]
[342318941,1731701526588,-579.24669079,9.787e-05,2]
[342318942,1731701526598,-985.43,9.787e-05,2]
[342318943,1731701526606,-673.23,9.787e-05,2]
[342318944,1731701526615,-985.43,9.787e-05,2]
[342318945,1731701526624,-985.43,9.787e-05,2]
[342318946,1731701526635,-673.23,9.787e-05,2]
[342318947,1731701526645,-985.43,9.787e-05,2]
[342318948,1731701526663,-673.23,9.787e-05,2]
[342318949,1731701526673,-673.23,9.787e-05,2]
[342318950,1731701526683,-673.35634186,9.787e-05,2]
[342318951,1731701526693,-985.46481943,9.787e-05,2]
[342318952,1731701526703,-1411.73,9.787e-05,2]
[342318953,1731701526712,-1411.73,9.787e-05,2]
[342318954,1731701526722,-1411.73,9.787e-05,2]
[342318955,1731701526732,-1411.73,9.787e-05,2]
[342318956,1731701526741,-1411.91783674,9.787e-05,2]
[342318957,1731701526750,-150.01,9.788e-05,2]
[342318958,1731701526759,-2390.88907257,9.788e-05,2]
[342318959,1731701526768,-224.014252,9.788e-05,2]
[342318960,1731701526778,-224.014252,9.788e-05,2]
[342318961,1731701526788,-224.014252,9.788e-05,2]
[342318962,1731701526797,-224.014252,9.788e-05,2]
[342318963,1731701526807,-224.014252,9.789e-05,2]
[342318964,1731701526816,-224.014252,9.789e-05,2]
[342318965,1731701526825,-215.463452,9.791e-05,2]
[342318966,1731701526835,-224.014252,9.791e-05,2]
[342318967,1731701526845,-224.01425,9.791e-05,2]
[342318968,1731701526854,-600.0,9.8e-05,2]
[342318969,1731701526866,-229.0,9.8e-05,2]
[342318970,1731701526876,-967.8,9.8e-05,2]
[342318971,1731701526885,-363.0,9.8e-05,2]
[342318972,1731701526894,-1000.0,9.8e-05,2]
[342318973,1731701526908,-150.0,9.815e-05,2]
[342318974,1731701526917,-279.346,9.815e-05,2]
[342318975,1731701526926,-226.0,9.815e-05,2]
[342318976,1731701526935,-150.0,9.815e-05,2]
[342318977,1731701526945,-563.0,9.815e-05,2]
[342318978,1731701526955,-1255.0,9.815e-05,2]
[342318979,1731701526965,-1992.0,9.815e-05,2]
[342318980,1731701526975,-628.0,9.815e-05,2]
[342318981,1731701526984,-1924.0,9.815e-05,2]
[342318982,1731701526993,-559.0,9.815e-05,2]
[342318983,1731701527003,-3745.0,9.815e-05,2]
[342318984,1731701527011,-814.0,9.815e-05,2]
[342318985,1731701527020,-1259.0,9.815e-05,2]
[342318986,1731701527030,-3488.0,9.815e-05,2]
[342318987,1731701527039,-912.0,9.815e-05,2]
[342318988,1731701527048,-19205.41100529,9.9e-05,2]
[342318989,1731701527057,-2066.6501,9.9e-05,2]
[342318990,1731701527066,-520.1633,9.9e-05,2]
[342318991,1731701527075,-3453.5538,9.9e-05,2]
[342318992,1731701527084,-6667.174,9.9e-05,2]
[342318993,1731701527094,-2500.0,9.9e-05,2]
[342318994,1731701527103,-5800.0,9.958e-05,2]
[342318995,1731701527112,-5800.0,9.966e-05,2]
[342318996,1731701527121,-8500.0,9.974e-05,2]
[342318997,1731701527130,-8500.0,9.974e-05,2]
[342318998,1731701527140,-3700.9618321,9.975e-05,2]
[342318999,1731701527225,-2099.0381679,9.975e-05,2]
[342319000,1731701527235,-4085.01105403,9.982e-05,2]
[342319001,1731701527247,-2251.0,9.982e-05,2]
[342319002,1731701527258,-2163.98894597,9.982e-05,2]
[342319003,1731701527266,-5538.03825403,9.982e-05,2]
[342319004,1731701527278,-258.3105903,9.982e-05,2]
[342319005,1731701527289,-2703.65115567,9.982e-05,2]
[342319006,1731701527299,-2608.36681016,9.982e-05,2]
[342319007,1731701527309,-5891.63318984,9.982e-05,2]
[342319008,1731701527319,-5800.0,9.983e-05,2]
[342319009,1731701527328,-565.89268856,9.983e-05,2]
[342319010,1731701527339,-5234.10731144,9.983e-05,2]
[342319011,1731701527349,-2500.0,9.99e-05,2]
[342319012,1731701527358,-1528.93629813,9.991e-05,2]
[342319013,1731701527380,-735.89089734,9.991e-05,2]
[342319014,1731701527391,-1358.82,9.991e-05,2]
[342319015,1731701527760,-1358.842485,9.991e-05,2]
[342319016,1731701527775,-3517.51031953,9.991e-05,2]
[342319017,1731701527785,-8500.0,9.991e-05,2]
[342319018,1731701527794,-8500.0,9.991e-05,2]
[342319019,1731701527804,-5800.0,9.992e-05,2]
[342319020,1731701527813,-5800.0,9.992e-05,2]
[342319021,1731701527822,-5800.0,9.992e-05,2]
[342319022,1731701527832,-5800.0,9.992e-05,2]
[342319023,1731701527845,-1083.529262,9.993e-05,2]
[342319024,1731701527854,-1173.6121339,9.993e-05,2]
[342319025,1731701527863,-1263.6950058,9.993e-05,2]
[342319026,1731701527872,-1353.7778777,9.993e-05,2]
[342319027,1731701527881,-1443.8607496,9.993e-05,2]
[342319028,1731701527891,-2256.464339,9.993e-05,2]
[342319029,1731701527904,-2449.7911713,9.993e-05,2]
[342319030,1731701527913,-2643.1180036,9.993e-05,2]
[342319031,1731701527923,-2836.4448359,9.993e-05,2]
[342319032,1731701527932,-3029.7716681,9.993e-05,2]
[342319033,1731701527942,-80083.98176901,9.999e-05,2]
[342319034,1731701527952,-230125.19496233,0.0001,2]
[342319035,1731701527963,-22510.0,0.0001,2]
[342319036,1731701527974,-44220.44234086,0.0001,2]
[342319037,1731701527985,-517.07306933,0.0001,2]
[342319038,1731701528025,-6239.74946294,0.0001,2]
[342319039,1731701528051,-1572.95051361,0.0001,2]
[342319040,1731701528062,-227835.24711422,0.0001,2]
[342319041,1731701528072,-7118.85502415,0.0001,2]
[342319042,1731701528113,-671.83579611,0.0001,2]
[342319043,1731701528125,-397745.11885845,0.0001,2]
[342319044,1731701528137,-760.65118109,0.0001,2]
[342319046,1731701607684,500.0,0.00024862,120]
[342319047,1731701613536,2000.0,0.00024862,120]
[342319048,1731701620541,200.0,0.00024862,120]
[342319049,1731701687531,5000.0,0.00025,60]
[342319050,1731702107843,982.77,8.219e-05,2]
[342319051,1731702161610,150.0,8.5e-05,2]
[342319053,1731702202250,2700.0,0.00025,60]
[342319058,1731702632271,-250.0,8.799e-05,2]
[342319059,1731702632281,-614.81,8.82e-05,2]
[342319060,1731702632291,-158.55525247,8.864e-05,2]
[342319061,1731702632302,-629.63474753,8.864e-05,2]
[342319062,1731702632318,-29.15711184,8.864e-05,2]
[342319063,1731702632330,-200.0,8.865e-05,2]
[342319064,1731702632340,-23900.0,8.865e-05,2]
[342319065,1731702632349,-764.27,8.877e-05,2]
[342319066,1731702632359,-1500.0,8.881e-05,2]
[342319067,1731702632368,-1000.0,8.881e-05,2]
[342319068,1731702632377,-250.0,8.881e-05,2]
[342319069,1731702632387,-500.0,9e-05,2]
[342319070,1731702632395,-580.13,9e-05,2]
[342319071,1731702632404,-500.0,9e-05,2]
[342319072,1731702632413,-500.0,9e-05,2]
[342319073,1731702632422,-500.0,9e-05,2]
[342319074,1731702632431,-500.0,9e-05,2]
[342319075,1731702632440,-150.0,9.063e-05,2]
[342319076,1731702632449,-14558.35085244,9.064e-05,2]
[342319077,1731702632460,-595.76914756,9.064e-05,2]
[342319078,1731702632469,-157.880768,9.586e-05,2]
[342319079,1731702632478,-200.0,9.6e-05,2]
[342319080,1731702632487,-6737.73074208,9.683e-05,2]
[342319081,1731702632506,-604.43384436,9.683e-05,2]
[342319082,1731702632517,-1731.19201356,9.683e-05,2]
[342319083,1731702632527,-1154.94677156,9.685e-05,2]
[342319084,1731702632541,-441.03442844,9.685e-05,2]
[342319085,1731702632550,-500.0,9.779e-05,2]
[342319086,1731702632559,-500.0,9.779e-05,2]
[342319087,1731702632571,-74.46557156,9.78e-05,2]
[342319088,1731702632587,-425.53442844,9.78e-05,2]
[342319089,1731702632596,-500.0,9.78e-05,2]
[342319090,1731702632606,-555.10266105,9.781e-05,2]
[342319091,1731702632616,-152.75792143,9.781e-05,2]
[342319092,1731702632626,-541.77,9.781e-05,2]
[342319093,1731702632635,-500.0,9.781e-05,2]
[342319094,1731702632644,-500.0,9.781e-05,2]
[342319095,1731702632653,-1880.87,9.781e-05,2]
[342319096,1731702632663,-990.77,9.781e-05,2]
[342319097,1731702632671,-551.89143553,9.781e-05,2]
[342319098,1731702632682,-54.85856447,9.781e-05,2]
[342319099,1731702632691,-500.0,9.781e-05,2]
[342319100,1731702632701,-335.14143553,9.781e-05,2]
[342319101,1731702632712,-164.85856447,9.781e-05,2]
[342319102,1731702632722,-500.0,9.781e-05,2]
[342319103,1731702632732,-500.0,9.781e-05,2]
[342319104,1731702632740,-500.0,9.781e-05,2]
[342319105,1731702632750,-541.77,9.782e-05,2]
[342319106,1731702632758,-500.0,9.782e-05,2]
[342319107,1731702632768,-500.0,9.782e-05,2]
[342319108,1731702632777,-1880.87,9.782e-05,2]
[342319109,1731702632786,-990.77,9.782e-05,2]
[342319110,1731702632795,-606.75,9.782e-05,2]
[342319111,1731702632804,-500.0,9.782e-05,2]
[342319112,1731702632823,-583.32144508,9.782e-05,2]
[342319113,1731702632835,-500.0,9.782e-05,2]
[342319114,1731702632845,-500.0,9.782e-05,2]
[342319115,1731702632854,-500.0,9.782e-05,2]
[342319116,1731702632865,-500.0,9.782e-05,2]
[342319117,1731702632875,-500.0,9.782e-05,2]
[342319118,1731702632885,-500.0,9.782e-05,2]
[342319119,1731702632895,-500.0,9.782e-05,2]
[342319120,1731702632904,-500.0,9.782e-05,2]
[342319121,1731702632914,-500.0,9.782e-05,2]
[342319122,1731702632923,-500.0,9.782e-05,2]
[342319123,1731702632933,-500.0,9.782e-05,2]
[342319124,1731702632943,-500.0,9.782e-05,2]
[342319125,1731702632953,-500.0,9.782e-05,2]
[342319126,1731702632963,-500.0,9.782e-05,2]
[342319127,1731702632973,-500.0,9.782e-05,2]
[342319128,1731702632982,-500.0,9.782e-05,2]
[342319129,1731702632992,-500.0,9.782e-05,2]
[342319130,1731702633003,-500.0,9.782e-05,2]
[342319131,1731702633014,-500.0,9.782e-05,2]
[342319132,1731702633028,-500.0,9.782e-05,2]
[342319133,1731702633038,-500.0,9.782e-05,2]
[342319134,1731702633049,-500.0,9.782e-05,2]
[342319135,1731702633061,-500.0,9.782e-05,2]
[342319136,1731702633077,-273.32078793,9.782e-05,2]
[342319137,1731702633089,-500.0,9.782e-05,2]
[342319138,1731702633100,-513.43,9.782e-05,2]
[342319139,1731702633111,-500.0,9.782e-05,2]
[342319140,1731702633121,-500.0,9.782e-05,2]
[342319141,1731702633133,-500.0,9.782e-05,2]
[342319142,1731702633143,-500.0,9.782e-05,2]
[342319143,1731702633153,-500.0,9.782e-05,2]
[342319144,1731702633165,-638.06,9.782e-05,2]
[342319145,1731702633176,-523.59,9.782e-05,2]
[342319146,1731702633186,-548.25,9.782e-05,2]
[342319147,1731702633196,-500.0,9.782e-05,2]
[342319148,1731702633207,-500.0,9.782e-05,2]
[342319149,1731702633217,-500.0,9.782e-05,2]
[342319150,1731702633227,-500.0,9.782e-05,2]
[342319151,1731702633238,-500.0,9.782e-05,2]
[342319152,1731702633249,-500.0,9.782e-05,2]
[342319153,1731702633259,-500.0,9.782e-05,2]
[342319154,1731702633269,-500.0,9.782e-05,2]
[342319155,1731702633280,-500.0,9.782e-05,2]
[342319156,1731702633290,-587.39,9.782e-05,2]
[342319157,1731702633300,-500.0,9.782e-05,2]
[342319158,1731702633310,-500.0,9.782e-05,2]
[342319159,1731702633324,-500.0,9.782e-05,2]
[342319160,1731702633334,-500.0,9.782e-05,2]
[342319161,1731702633344,-500.0,9.782e-05,2]
[342319162,1731702633354,-500.0,9.782e-05,2]
[342319163,1731702633364,-500.0,9.782e-05,2]
[342319164,1731702633375,-500.0,9.782e-05,2]
[342319165,1731702633385,-500.0,9.782e-05,2]
[342319166,1731702633396,-500.0,9.782e-05,2]
[342319167,1731702633406,-500.0,9.782e-05,2]
[342319168,1731702633416,-500.0,9.782e-05,2]
[342319169,1731702633425,-500.0,9.782e-05,2]
[342319170,1731702633436,-500.0,9.782e-05,2]
[342319171,1731702633447,-500.0,9.782e-05,2]
[342319172,1731702633457,-500.0,9.782e-05,2]
[342319173,1731702633468,-500.0,9.782e-05,2]
[342319174,1731702633479,-500.0,9.782e-05,2]
[342319175,1731702633489,-500.0,9.782e-05,2]
[342319176,1731702633499,-500.0,9.782e-05,2]
[342319177,1731702633510,-500.0,9.782e-05,2]
[342319178,1731702633520,-500.0,9.782e-05,2]
[342319179,1731702633534,-500.0,9.782e-05,2]
[342319180,1731702633546,-500.0,9.782e-05,2]
[342319181,1731702633557,-500.0,9.782e-05,2]
[342319182,1731702633567,-500.0,9.782e-05,2]
[342319183,1731702633585,-500.0,9.782e-05,2]
[342319184,1731702633595,-500.0,9.782e-05,2]
[342319185,1731702633607,-500.0,9.782e-05,2]
[342319186,1731702633620,-500.0,9.782e-05,2]
[342319187,1731702633631,-512.96,9.782e-05,2]
[342319188,1731702633641,-500.0,9.782e-05,2]
[342319189,1731702633651,-500.0,9.782e-05,2]
[342319190,1731702633661,-500.0,9.782e-05,2]
[342319191,1731702633671,-500.0,9.782e-05,2]
[342319192,1731702633681,-500.0,9.782e-05,2]
[342319193,1731702633691,-500.0,9.782e-05,2]
[342319194,1731702633701,-500.0,9.782e-05,2]
[342319195,1731702633711,-500.0,9.782e-05,2]
[342319196,1731702633721,-500.0,9.782e-05,2]
[342319197,1731702633731,-437.64558419,9.782e-05,2]
[342319198,1731702633742,-500.0,9.782e-05,2]
[342319199,1731702633752,-500.0,9.782e-05,2]
[342319200,1731702633762,-500.0,9.782e-05,2]
[342319201,1731702633772,-500.0,9.782e-05,2]
[342319202,1731702633781,-500.0,9.782e-05,2]
[342319203,1731702633791,-500.0,9.782e-05,2]
[342319204,1731702633801,-500.0,9.782e-05,2]
[342319205,1731702633811,-500.0,9.782e-05,2]
[342319206,1731702633824,-500.0,9.783e-05,2]
[342319207,1731702633835,-500.0,9.783e-05,2]
[342319208,1731702633845,-500.0,9.783e-05,2]
[342319209,1731702633855,-500.0,9.783e-05,2]
[342319210,1731702633865,-500.0,9.783e-05,2]
[342319211,1731702633875,-500.0,9.783e-05,2]
[342319212,1731702633885,-500.0,9.783e-05,2]
[342319213,1731702633895,-500.0,9.783e-05,2]
[342319214,1731702633905,-500.0,9.783e-05,2]
[342319215,1731702633916,-500.0,9.783e-05,2]
[342319216,1731702633926,-500.0,9.783e-05,2]
[342319217,1731702633936,-500.0,9.783e-05,2]
[342319218,1731702633946,-609.871381,9.783e-05,2]
[342319219,1731702633955,-500.0,9.783e-05,2]
[342319220,1731702633965,-500.0,9.783e-05,2]
[342319221,1731702633974,-387.03474487,9.783e-05,2]
[342319222,1731702633984,-500.0,9.783e-05,2]
[342319223,1731702633993,-528.13,9.783e-05,2]
[342319224,1731702634003,-494.43566798,9.783e-05,2]
[342319225,1731702634013,-500.0,9.783e-05,2]
[342319226,1731702634023,-500.0,9.783e-05,2]
[342319227,1731702634032,-625.32,9.783e-05,2]
[342319228,1731702634042,-500.0,9.783e-05,2]
[342319229,1731702634052,-500.0,9.783e-05,2]
[342319230,1731702634062,-500.0,9.783e-05,2]
[342319231,1731702634075,-500.0,9.783e-05,2]
[342319232,1731702634085,-500.0,9.783e-05,2]
[342319233,1731702634094,-500.0,9.783e-05,2]
[342319234,1731702634104,-500.0,9.783e-05,2]
[342319235,1731702634113,-500.0,9.783e-05,2]
[342319236,1731702634122,-500.0,9.783e-05,2]
[342319237,1731702634132,-500.0,9.783e-05,2]
[342319238,1731702634142,-500.0,9.783e-05,2]
[342319239,1731702634151,-500.0,9.783e-05,2]
[342319240,1731702634161,-500.0,9.783e-05,2]
[342319241,1731702634171,-500.0,9.783e-05,2]
[342319242,1731702634180,-500.0,9.783e-05,2]
[342319243,1731702634190,-500.0,9.783e-05,2]
[342319244,1731702634200,-500.0,9.783e-05,2]
[342319245,1731702634209,-500.0,9.783e-05,2]
[342319246,1731702634219,-500.0,9.783e-05,2]
[342319247,1731702634228,-500.0,9.783e-05,2]
[342319248,1731702634237,-500.0,9.783e-05,2]
[342319249,1731702634246,-535.23,9.783e-05,2]
[342319250,1731702634255,-500.0,9.783e-05,2]
[342319251,1731702634265,-500.0,9.783e-05,2]
[342319252,1731702634274,-500.0,9.783e-05,2]
[342319253,1731702634284,-500.0,9.783e-05,2]
[342319254,1731702634293,-500.0,9.783e-05,2]
[342319255,1731702634302,-500.0,9.783e-05,2]
[342319256,1731702634312,-500.0,9.783e-05,2]
[342319257,1731702634325,-500.0,9.783e-05,2]
[342319258,1731702634335,-599.5,9.783e-05,2]
[342319259,1731702634345,-500.0,9.783e-05,2]
[342319260,1731702634355,-500.0,9.783e-05,2]
[342319261,1731702634364,-500.0,9.783e-05,2]
[342319262,1731702634374,-500.0,9.783e-05,2]
[342319263,1731702634384,-605.55,9.783e-05,2]
[342319264,1731702634394,-500.0,9.783e-05,2]
[342319265,1731702634404,-500.0,9.783e-05,2]
[342319266,1731702634413,-500.0,9.783e-05,2]
[342319267,1731702634424,-500.0,9.783e-05,2]
[342319268,1731702634434,-500.0,9.783e-05,2]
[342319269,1731702634443,-500.0,9.783e-05,2]
[342319270,1731702634453,-500.0,9.783e-05,2]
[342319271,1731702634462,-500.0,9.783e-05,2]
[342319272,1731702634472,-500.0,9.783e-05,2]
[342319273,1731702634482,-500.0,9.783e-05,2]
[342319274,1731702634491,-500.0,9.783e-05,2]
[342319275,1731702634500,-500.0,9.783e-05,2]
[342319276,1731702634509,-500.0,9.783e-05,2]
[342319277,1731702634519,-597.04,9.783e-05,2]
[342319278,1731702634528,-500.0,9.783e-05,2]
[342319279,1731702634538,-500.0,9.783e-05,2]
[342319280,1731702634552,-527.06226797,9.783e-05,2]
[342319281,1731702634562,-500.0,9.783e-05,2]
[342319282,1731702634577,-500.0,9.783e-05,2]
[342319283,1731702634587,-541.77,9.783e-05,2]
[342319284,1731702634597,-541.77,9.783e-05,2]
[342319285,1731702634607,-500.0,9.783e-05,2]
[342319286,1731702634617,-500.0,9.783e-05,2]
[342319287,1731702634630,-500.0,9.783e-05,2]
[342319288,1731702634639,-1667.274,9.783e-05,2]
[342319289,1731702634649,-500.0,9.783e-05,2]
[342319290,1731702634659,-500.0,9.783e-05,2]
[342319291,1731702634668,-500.0,9.783e-05,2]
[342319292,1731702634677,-500.0,9.783e-05,2]
[342319293,1731702634687,-1880.87,9.783e-05,2]
[342319294,1731702634696,-1880.87,9.783e-05,2]
[342319295,1731702634705,-990.77,9.783e-05,2]
[342319296,1731702634716,-990.77,9.783e-05,2]
[342319297,1731702634725,-500.0,9.783e-05,2]
[342319298,1731702634734,-606.75,9.783e-05,2]
[342319299,1731702634744,-606.75,9.783e-05,2]
[342319300,1731702634755,-500.0,9.783e-05,2]
[342319301,1731702634765,-500.0,9.783e-05,2]
[342319302,1731702634774,-500.0,9.783e-05,2]
[342319303,1731702634784,-500.0,9.783e-05,2]
[342319304,1731702634793,-500.0,9.783e-05,2]
[342319305,1731702634802,-500.0,9.783e-05,2]
[342319306,1731702634811,-500.0,9.783e-05,2]
[342319307,1731702634824,-500.0,9.783e-05,2]
[342319308,1731702634832,-500.0,9.783e-05,2]
[342319309,1731702634842,-551.21642664,9.783e-05,2]
[342319310,1731702634851,-500.0,9.783e-05,2]
[342319311,1731702634861,-500.0,9.783e-05,2]
[342319312,1731702634870,-500.0,9.783e-05,2]
[342319313,1731702634879,-500.0,9.783e-05,2]
[342319314,1731702634888,-500.0,9.783e-05,2]
[342319315,1731702634898,-500.0,9.783e-05,2]
[342319316,1731702634907,-500.0,9.783e-05,2]
[342319317,1731702634916,-500.0,9.783e-05,2]
[342319318,1731702634926,-500.0,9.783e-05,2]
[342319319,1731702634935,-500.0,9.783e-05,2]
[342319320,1731702634945,-500.0,9.783e-05,2]
[342319321,1731702634955,-500.0,9.783e-05,2]
[342319322,1731702634964,-500.0,9.783e-05,2]
[342319323,1731702634974,-523.98,9.783e-05,2]
[342319324,1731702634983,-500.0,9.783e-05,2]
[342319325,1731702634992,-500.0,9.783e-05,2]
[342319326,1731702635002,-500.0,9.783e-05,2]
[342319327,1731702635010,-500.0,9.783e-05,2]
[342319328,1731702635019,-500.0,9.783e-05,2]
[342319329,1731702635029,-500.0,9.783e-05,2]
[342319330,1731702635038,-500.0,9.783e-05,2]
[342319331,1731702635047,-500.0,9.783e-05,2]
[342319332,1731702635057,-500.0,9.783e-05,2]
[342319333,1731702635067,-500.0,9.783e-05,2]
[342319334,1731702635079,-500.0,9.783e-05,2]
[342319335,1731702635088,-500.0,9.783e-05,2]
[342319336,1731702635098,-500.0,9.783e-05,2]
[342319337,1731702635107,-500.0,9.783e-05,2]
[342319338,1731702635116,-500.0,9.783e-05,2]
[342319339,1731702635125,-500.0,9.783e-05,2]
[342319340,1731702635134,-500.0,9.783e-05,2]
[342319341,1731702635144,-500.0,9.783e-05,2]
[342319342,1731702635153,-500.0,9.783e-05,2]
[342319343,1731702635162,-527.88473431,9.783e-05,2]
[342319344,1731702635171,-500.0,9.783e-05,2]
[342319345,1731702635180,-500.0,9.783e-05,2]
[342319346,1731702635189,-500.0,9.783e-05,2]
[342319347,1731702635198,-500.0,9.783e-05,2]
[342319348,1731702635207,-500.0,9.783e-05,2]
[342319349,1731702635216,-500.0,9.783e-05,2]
[342319350,1731702635225,-500.0,9.783e-05,2]
[342319351,1731702635234,-500.0,9.783e-05,2]
[342319352,1731702635243,-500.0,9.783e-05,2]
[342319353,1731702635252,-470.03631945,9.783e-05,2]
[342319354,1731702635261,-500.0,9.783e-05,2]
[342319355,1731702635270,-500.0,9.783e-05,2]
[342319356,1731702635279,-500.0,9.783e-05,2]
[342319357,1731702635289,-500.0,9.783e-05,2]
[342319358,1731702635298,-500.0,9.783e-05,2]
[342319359,1731702635307,-650.04,9.783e-05,2]
[342319360,1731702635316,-500.0,9.783e-05,2]
[342319361,1731702635329,-500.0,9.783e-05,2]
[342319362,1731702635338,-500.0,9.783e-05,2]
[342319363,1731702635347,-500.0,9.783e-05,2]
[342319364,1731702635357,-500.0,9.783e-05,2]
[342319365,1731702635366,-500.0,9.783e-05,2]
[342319366,1731702635375,-500.0,9.783e-05,2]
[342319367,1731702635385,-500.0,9.783e-05,2]
[342319368,1731702635395,-500.0,9.783e-05,2]
[342319369,1731702635403,-500.0,9.783e-05,2]
[342319370,1731702635413,-500.0,9.783e-05,2]
[342319371,1731702635426,-500.0,9.783e-05,2]
[342319372,1731702635435,-500.0,9.783e-05,2]
[342319373,1731702635444,-500.0,9.783e-05,2]
[342319374,1731702635453,-500.0,9.783e-05,2]